[Event "Titled Tuesday Blitz August 1 Late 2023"]
[White "Manon-og, Ramon Jr."]
[Black "Senthilkumar, Pranav"]
[WhiteFideId "5200776"]
[BlackFideId "2083477"]
[WhiteElo "2312"]
[BlackElo "2470"]
[Result "1-0"]
[Round "4"]
[TimeControl "180+1"]
[Date "2023.08.01"]
[WhiteClock "0:00:19"]
[BlackClock "0:00:27"]
[Board "126"]

1. e4 {[%clk 0:03:00]}  c5 {[%clk 0:02:59]} 2. Nf3 {[%clk 0:03:01]}  e6 {[%clk 0:02:59]} 3. g3 {[%clk 0:03:01]}  d6 {[%clk 0:02:57]} 4. Bg2 {[%clk 0:03:01]}  Nf6 {[%clk 0:02:58]} 5. Nc3 {[%clk 0:03:01]}  Be7 {[%clk 0:02:58]} 6. O-O {[%clk 0:03:01]}  O-O {[%clk 0:02:58]} 7. d4 {[%clk 0:03:02]}  cxd4 {[%clk 0:02:56]} 8. Nxd4 {[%clk 0:03:03]}  Nc6 {[%clk 0:02:57]} 9. Be3 {[%clk 0:03:03]}  a6 {[%clk 0:02:55]} 10. Nxc6 {[%clk 0:02:56]}  bxc6 {[%clk 0:02:56]} 11. e5 {[%clk 0:02:56]}  Nd5 {[%clk 0:02:56]} 12. exd6 {[%clk 0:02:54]}  Bxd6 {[%clk 0:02:50]} 13. Bd2 {[%clk 0:02:48]}  Bb7 {[%clk 0:02:49]} 14. Qh5 {[%clk 0:02:44]}  c5 {[%clk 0:02:43]} 15. Rad1 {[%clk 0:02:43]}  Nf6 {[%clk 0:02:41]} 16. Qh4 {[%clk 0:02:42]}  Bxg2 {[%clk 0:02:41]} 17. Kxg2 {[%clk 0:02:43]}  Qc7 {[%clk 0:02:39]} 18. Bg5 {[%clk 0:02:40]}  Qc6+ {[%clk 0:02:39]} 19. Kg1 {[%clk 0:02:32]}  Be7 {[%clk 0:02:38]} 20. Rd2 {[%clk 0:02:04]}  Rad8 {[%clk 0:02:31]} 21. Rfd1 {[%clk 0:02:04]}  Rxd2 {[%clk 0:02:30]} 22. Rxd2 {[%clk 0:02:05]}  h6 {[%clk 0:02:03]} 23. Be3 {[%clk 0:01:46]}  Nd5 {[%clk 0:02:00]} 24. Qe4 {[%clk 0:01:46]}  Bf6 {[%clk 0:01:54]} 25. Nxd5 {[%clk 0:01:44]}  exd5 {[%clk 0:01:54]} 26. Qxd5 {[%clk 0:01:44]}  Qa4 {[%clk 0:01:46]} 27. Bxc5 {[%clk 0:01:37]}  Rd8 {[%clk 0:01:37]} 28. Bd6 {[%clk 0:01:23]}  Be7 {[%clk 0:01:35]} 29. Qe5 {[%clk 0:01:17]}  Bf6 {[%clk 0:01:10]} 30. Qe3 {[%clk 0:00:54]}  Qxa2 {[%clk 0:01:07]} 31. b3 {[%clk 0:00:47]}  Qa1+ {[%clk 0:01:04]} 32. Kg2 {[%clk 0:00:47]}  Qc3 {[%clk 0:01:00]} 33. Qxc3 {[%clk 0:00:45]}  Bxc3 {[%clk 0:01:01]} 34. Rd3 {[%clk 0:00:46]}  Bf6 {[%clk 0:01:00]} 35. Bc5 {[%clk 0:00:43]}  Rc8 {[%clk 0:01:00]} 36. b4 {[%clk 0:00:43]}  a5 {[%clk 0:00:58]} 37. c3 {[%clk 0:00:43]}  a4 {[%clk 0:00:59]} 38. c4 {[%clk 0:00:40]}  Ra8 {[%clk 0:00:58]} 39. b5 {[%clk 0:00:39]}  Bb2 {[%clk 0:00:58]} 40. b6 {[%clk 0:00:34]}  a3 {[%clk 0:00:58]} 41. Bxa3 {[%clk 0:00:27]}  Bxa3 {[%clk 0:00:38]} 42. b7 {[%clk 0:00:25]}  Rb8 {[%clk 0:00:38]} 43. Rxa3 {[%clk 0:00:25]}  Rxb7 {[%clk 0:00:39]} 44. c5 {[%clk 0:00:24]}  Rc7 {[%clk 0:00:38]} 45. Rc3 {[%clk 0:00:24]}  Kf8 {[%clk 0:00:39]} 46. Kf3 {[%clk 0:00:25]}  Ke7 {[%clk 0:00:40]} 47. Ke4 {[%clk 0:00:25]}  Ke6 {[%clk 0:00:40]} 48. f4 {[%clk 0:00:24]}  Rd7 {[%clk 0:00:39]} 49. g4 {[%clk 0:00:20]}  g6 {[%clk 0:00:37]} 50. f5+ {[%clk 0:00:20]}  gxf5+ {[%clk 0:00:36]} 51. gxf5+ {[%clk 0:00:21]}  Kf6 {[%clk 0:00:36]} 52. c6 {[%clk 0:00:22]}  Rc7 {[%clk 0:00:36]} 53. h4 {[%clk 0:00:18]}  Rc8 {[%clk 0:00:30]} 54. c7 {[%clk 0:00:18]}  Ke7 {[%clk 0:00:31]} 55. Ke5 {[%clk 0:00:17]}  f6+ {[%clk 0:00:31]} 56. Kd5 {[%clk 0:00:18]}  Kd7 {[%clk 0:00:31]} 57. Rc6 {[%clk 0:00:17]}  Ke7 {[%clk 0:00:30]} 58. Re6+ {[%clk 0:00:15]}  Kd7 {[%clk 0:00:27]} 59. Rxf6 {[%clk 0:00:15]}  Kxc7 {[%clk 0:00:27]} 60. Rc6+ {[%clk 0:00:15]}  Kd7 {[%clk 0:00:27]} 61. Rxc8 {[%clk 0:00:16]}  Kxc8 {[%clk 0:00:28]} 62. Ke6 {[%clk 0:00:16]}  Kd8 {[%clk 0:00:28]} 63. Kf7 {[%clk 0:00:17]}  Kd7 {[%clk 0:00:28]} 64. f6 {[%clk 0:00:17]}  h5 {[%clk 0:00:28]} 65. Kg7 {[%clk 0:00:18]}  Ke6 {[%clk 0:00:27]} 66. f7 {[%clk 0:00:19]} 1-0


[Site "https://www.chess.com"]

[Event "Titled Tuesday Blitz August 1 Late 2023"]
[White "Lopez Gracia, Fernando"]
[Black "Hamley, Ryan"]
[WhiteFideId "2207184"]
[BlackFideId "30959497"]
[WhiteElo "2310"]
[BlackElo "2466"]
[Result "0-1"]
[Round "4"]
[TimeControl "180+1"]
[Date "2023.08.01"]
[WhiteClock "0:00:14"]
[BlackClock "0:01:00"]
[Board "127"]

1. e4 {[%clk 0:03:00]}  c5 {[%clk 0:02:58]} 2. Nf3 {[%clk 0:02:59]}  d6 {[%clk 0:02:58]} 3. d4 {[%clk 0:02:59]}  cxd4 {[%clk 0:02:59]} 4. Nxd4 {[%clk 0:03:00]}  Nf6 {[%clk 0:03:00]} 5. Nc3 {[%clk 0:03:00]}  g6 {[%clk 0:03:00]} 6. f3 {[%clk 0:02:56]}  Bg7 {[%clk 0:03:00]} 7. Be3 {[%clk 0:02:56]}  O-O {[%clk 0:03:01]} 8. Qd2 {[%clk 0:02:55]}  Nc6 {[%clk 0:03:01]} 9. O-O-O {[%clk 0:02:54]}  d5 {[%clk 0:03:01]} 10. exd5 {[%clk 0:02:30]}  Nxd5 {[%clk 0:03:00]} 11. Nxc6 {[%clk 0:02:29]}  bxc6 {[%clk 0:03:01]} 12. Nxd5 {[%clk 0:02:28]}  cxd5 {[%clk 0:03:01]} 13. Qxd5 {[%clk 0:02:25]}  Qc7 {[%clk 0:03:01]} 14. Qc5 {[%clk 0:02:05]}  Qb7 {[%clk 0:02:58]} 15. Bd4 {[%clk 0:02:02]}  Bf5 {[%clk 0:02:52]} 16. Bxg7 {[%clk 0:01:54]}  Rfc8 {[%clk 0:02:48]} 17. Qxc8+ {[%clk 0:01:19]}  Rxc8 {[%clk 0:02:46]} 18. Bc3 {[%clk 0:01:20]}  Qb6 {[%clk 0:02:35]} 19. Bd3 {[%clk 0:01:17]}  Be6 {[%clk 0:02:22]} 20. a3 {[%clk 0:01:10]}  f6 {[%clk 0:02:11]} 21. Rhe1 {[%clk 0:01:09]}  Kf7 {[%clk 0:02:08]} 22. Re2 {[%clk 0:00:57]}  Rc7 {[%clk 0:01:59]} 23. Rde1 {[%clk 0:00:57]}  Bd5 {[%clk 0:01:52]} 24. f4 {[%clk 0:00:42]}  e6 {[%clk 0:01:48]} 25. g3 {[%clk 0:00:40]}  h5 {[%clk 0:01:45]} 26. Be4 {[%clk 0:00:33]}  Qc6 {[%clk 0:01:38]} 27. Bxd5 {[%clk 0:00:29]}  exd5 {[%clk 0:01:27]} 28. Bd4 {[%clk 0:00:20]}  a5 {[%clk 0:01:25]} 29. c3 {[%clk 0:00:20]}  a4 {[%clk 0:01:21]} 30. h3 {[%clk 0:00:20]}  Rb7 {[%clk 0:01:18]} 31. g4 {[%clk 0:00:20]}  hxg4 {[%clk 0:01:18]} 32. hxg4 {[%clk 0:00:21]}  Qb5 {[%clk 0:01:14]} 33. g5 {[%clk 0:00:21]}  f5 {[%clk 0:01:14]} 34. Rh2 {[%clk 0:00:21]}  Kg8 {[%clk 0:01:03]} 35. Rh8+ {[%clk 0:00:21]}  Kf7 {[%clk 0:01:03]} 36. Rh7+ {[%clk 0:00:20]}  Kg8 {[%clk 0:01:04]} 37. Rh8+ {[%clk 0:00:20]}  Kf7 {[%clk 0:01:04]} 38. Reh1 {[%clk 0:00:15]}  Qxb2+ {[%clk 0:01:03]} 39. Kd1 {[%clk 0:00:15]}  Qb1+ {[%clk 0:01:04]} 40. Ke2 {[%clk 0:00:14]}  Rb2+ {[%clk 0:01:00]} 41. Ke3 {[%clk 0:00:14]}  Qe4# {[%clk 0:01:00]} 0-1


[Site "https://www.chess.com"]

[Event "Titled Tuesday Blitz August 1 Late 2023"]
[White "Cupid, Kevin"]
[Black "Gaal, Zsoka"]
[WhiteFideId "7700512"]
[BlackFideId "777765"]
[WhiteElo "2308"]
[BlackElo "2461"]
[Result "0-1"]
[Round "4"]
[TimeControl "180+1"]
[Date "2023.08.01"]
[WhiteClock "0:00:00"]
[BlackClock "0:01:36"]
[Board "128"]

1. d4 {[%clk 0:02:59]}  Nf6 {[%clk 0:02:58]} 2. Nf3 {[%clk 0:02:58]}  c5 {[%clk 0:02:58]} 3. c3 {[%clk 0:02:57]}  g6 {[%clk 0:02:55]} 4. Bg5 {[%clk 0:02:55]}  Bg7 {[%clk 0:02:55]} 5. e3 {[%clk 0:02:54]}  h6 {[%clk 0:02:55]} 6. Bxf6 {[%clk 0:02:53]}  Bxf6 {[%clk 0:02:55]} 7. Nbd2 {[%clk 0:02:53]}  d5 {[%clk 0:02:53]} 8. Be2 {[%clk 0:02:51]}  Qb6 {[%clk 0:02:50]} 9. b3 {[%clk 0:02:40]}  O-O {[%clk 0:02:45]} 10. O-O {[%clk 0:02:40]}  Nc6 {[%clk 0:02:45]} 11. Qc1 {[%clk 0:02:34]}  Bf5 {[%clk 0:02:38]} 12. Qa3 {[%clk 0:02:31]}  cxd4 {[%clk 0:02:34]} 13. Nxd4 {[%clk 0:02:13]}  Bd7 {[%clk 0:02:28]} 14. Rac1 {[%clk 0:01:52]}  e5 {[%clk 0:02:24]} 15. Nxc6 {[%clk 0:01:50]}  bxc6 {[%clk 0:02:16]} 16. e4 {[%clk 0:01:28]}  Be6 {[%clk 0:02:05]} 17. exd5 {[%clk 0:01:15]}  cxd5 {[%clk 0:02:06]} 18. c4 {[%clk 0:01:11]}  Bg5 {[%clk 0:02:04]} 19. Rcd1 {[%clk 0:00:58]}  Rad8 {[%clk 0:01:58]} 20. cxd5 {[%clk 0:00:55]}  Bxd5 {[%clk 0:01:56]} 21. Nc4 {[%clk 0:00:47]}  Qb7 {[%clk 0:01:56]} 22. f3 {[%clk 0:00:29]}  e4 {[%clk 0:01:43]} 23. f4 {[%clk 0:00:24]}  Be7 {[%clk 0:01:41]} 24. Qa5 {[%clk 0:00:21]}  Bb4 {[%clk 0:01:37]} 25. Qa4 {[%clk 0:00:00]}  Bc6 {[%clk 0:01:36]} 0-1


[Site "https://www.chess.com"]

[Event "Titled Tuesday Blitz August 1 Late 2023"]
[White "Ardila, Oscar Humberto"]
[Black "Miszler, Levente"]
[WhiteFideId "4404742"]
[BlackFideId "763276"]
[WhiteElo "2306"]
[BlackElo "2454"]
[Result "1-0"]
[Round "4"]
[TimeControl "180+1"]
[Date "2023.08.01"]
[WhiteClock "0:01:58"]
[BlackClock "0:02:16"]
[Board "129"]

1. d4 {[%clk 0:03:00]}  Nf6 {[%clk 0:02:58]} 2. Nf3 {[%clk 0:03:00]}  c5 {[%clk 0:02:57]} 3. c3 {[%clk 0:02:59]}  g6 {[%clk 0:02:56]} 4. g3 {[%clk 0:02:59]}  Bg7 {[%clk 0:02:56]} 5. Bg2 {[%clk 0:02:59]}  O-O {[%clk 0:02:57]} 6. O-O {[%clk 0:02:59]}  d5 {[%clk 0:02:57]} 7. e3 {[%clk 0:02:58]}  Nc6 {[%clk 0:02:56]} 8. Nbd2 {[%clk 0:02:58]}  Nd7 {[%clk 0:02:55]} 9. Re1 {[%clk 0:02:57]}  e5 {[%clk 0:02:54]} 10. dxe5 {[%clk 0:02:56]}  Ndxe5 {[%clk 0:02:55]} 11. Nxe5 {[%clk 0:02:57]}  Nxe5 {[%clk 0:02:56]} 12. Nf3 {[%clk 0:02:56]}  Be6 {[%clk 0:02:55]} 13. Nxe5 {[%clk 0:02:49]}  Bxe5 {[%clk 0:02:56]} 14. Qb3 {[%clk 0:02:49]}  Qc7 {[%clk 0:02:45]} 15. Qa4 {[%clk 0:02:38]}  a6 {[%clk 0:02:39]} 16. Qh4 {[%clk 0:02:37]}  Rad8 {[%clk 0:02:37]} 17. Bd2 {[%clk 0:02:28]}  Rfe8 {[%clk 0:02:36]} 18. Rad1 {[%clk 0:02:27]}  d4 {[%clk 0:02:36]} 19. exd4 {[%clk 0:02:15]}  cxd4 {[%clk 0:02:37]} 20. cxd4 {[%clk 0:02:09]}  Bxd4 {[%clk 0:02:38]} 21. Bg5 {[%clk 0:02:05]}  Rd7 {[%clk 0:02:16]} 22. Rxd4 {[%clk 0:01:58]} 1-0


[Site "https://www.chess.com"]

[Event "Titled Tuesday Blitz August 1 Late 2023"]
[White "CatLivesMatter"]
[Black "Fernandez Siles, Luis"]
[BlackFideId "2209420"]
[WhiteElo "2445"]
[BlackElo "2296"]
[Result "1/2-1/2"]
[Round "4"]
[TimeControl "180+1"]
[Date "2023.08.01"]
[WhiteClock "0:00:41"]
[BlackClock "0:01:26"]
[Board "132"]

1. e4 {[%clk 0:03:00]}  c5 {[%clk 0:02:59]} 2. Nc3 {[%clk 0:03:00]}  Nc6 {[%clk 0:02:59]} 3. Nf3 {[%clk 0:03:00]}  g6 {[%clk 0:02:56]} 4. d4 {[%clk 0:03:00]}  cxd4 {[%clk 0:02:56]} 5. Nxd4 {[%clk 0:03:01]}  Bg7 {[%clk 0:02:56]} 6. Be3 {[%clk 0:03:02]}  d6 {[%clk 0:02:56]} 7. Bc4 {[%clk 0:02:58]}  Nf6 {[%clk 0:02:56]} 8. f3 {[%clk 0:02:57]}  O-O {[%clk 0:02:55]} 9. Bb3 {[%clk 0:02:57]}  Bd7 {[%clk 0:02:55]} 10. Qd2 {[%clk 0:02:58]}  Qa5 {[%clk 0:02:55]} 11. h4 {[%clk 0:02:58]}  Rfc8 {[%clk 0:02:53]} 12. O-O-O {[%clk 0:02:58]}  Ne5 {[%clk 0:02:53]} 13. h5 {[%clk 0:02:54]}  Rxc3 {[%clk 0:02:47]} 14. Qxc3 {[%clk 0:02:49]}  Qxc3 {[%clk 0:02:47]} 15. bxc3 {[%clk 0:02:50]}  Nxh5 {[%clk 0:02:46]} 16. g4 {[%clk 0:02:43]}  Nf6 {[%clk 0:02:21]} 17. Kd2 {[%clk 0:02:36]}  Nxf3+ {[%clk 0:02:16]} 18. Nxf3 {[%clk 0:02:34]}  Bxg4 {[%clk 0:02:13]} 19. Rhf1 {[%clk 0:02:28]}  Nxe4+ {[%clk 0:02:13]} 20. Kc1 {[%clk 0:02:13]}  e6 {[%clk 0:01:52]} 21. Bd4 {[%clk 0:02:06]}  Ng3 {[%clk 0:01:35]} 22. Rf2 {[%clk 0:01:46]}  Ne4 {[%clk 0:01:34]} 23. Rff1 {[%clk 0:01:39]}  Ng3 {[%clk 0:01:27]} 24. Rf2 {[%clk 0:00:54]}  Ne4 {[%clk 0:01:26]} 25. Rff1 {[%clk 0:00:41]} 1/2-1/2


[Site "https://www.chess.com"]

[Event "Titled Tuesday Blitz August 1 Late 2023"]
[White "slidingknight2775"]
[Black "Ward, Ieuan C"]
[BlackFideId "406627"]
[WhiteElo "2445"]
[BlackElo "2294"]
[Result "1-0"]
[Round "4"]
[TimeControl "180+1"]
[Date "2023.08.01"]
[WhiteClock "0:00:07"]
[BlackClock "0:00:00"]
[Board "133"]

1. d4 {[%clk 0:03:00]}  Nf6 {[%clk 0:02:58]} 2. c4 {[%clk 0:03:01]}  e6 {[%clk 0:02:58]} 3. Nc3 {[%clk 0:03:01]}  Bb4 {[%clk 0:02:58]} 4. e3 {[%clk 0:03:02]}  d5 {[%clk 0:02:57]} 5. a3 {[%clk 0:03:01]}  Bxc3+ {[%clk 0:02:57]} 6. bxc3 {[%clk 0:03:02]}  O-O {[%clk 0:02:57]} 7. Bd3 {[%clk 0:03:00]}  b6 {[%clk 0:02:57]} 8. cxd5 {[%clk 0:03:00]}  exd5 {[%clk 0:02:56]} 9. Ne2 {[%clk 0:03:00]}  c5 {[%clk 0:02:55]} 10. O-O {[%clk 0:02:59]}  Bb7 {[%clk 0:02:51]} 11. f3 {[%clk 0:02:58]}  Nbd7 {[%clk 0:02:48]} 12. Ng3 {[%clk 0:02:58]}  Re8 {[%clk 0:02:47]} 13. Ra2 {[%clk 0:02:53]}  Qc7 {[%clk 0:02:42]} 14. Re2 {[%clk 0:02:49]}  cxd4 {[%clk 0:02:36]} 15. cxd4 {[%clk 0:02:50]}  a5 {[%clk 0:02:26]} 16. e4 {[%clk 0:02:40]}  dxe4 {[%clk 0:02:09]} 17. fxe4 {[%clk 0:02:41]}  Rad8 {[%clk 0:01:58]} 18. e5 {[%clk 0:01:36]}  Nd5 {[%clk 0:01:29]} 19. Ref2 {[%clk 0:01:24]}  Rf8 {[%clk 0:01:25]} 20. Qh5 {[%clk 0:00:55]}  g6 {[%clk 0:01:21]} 21. Qh4 {[%clk 0:00:53]}  Qc3 {[%clk 0:00:59]} 22. Rxf7 {[%clk 0:00:28]}  Rxf7 {[%clk 0:00:53]} 23. Qxd8+ {[%clk 0:00:27]}  Nf8 {[%clk 0:00:45]} 24. Bh6 {[%clk 0:00:14]}  Qxd4+ {[%clk 0:00:37]} 25. Kh1 {[%clk 0:00:14]}  Rxf1+ {[%clk 0:00:30]} 26. Bxf1 {[%clk 0:00:15]}  Qf2 {[%clk 0:00:19]} 27. Bc4 {[%clk 0:00:07]}  Qf7 {[%clk 0:00:13]} 28. h3 {[%clk 0:00:06]}  b5 {[%clk 0:00:09]} 29. Bxf8 {[%clk 0:00:05]}  Qxf8 {[%clk 0:00:07]} 30. Bxd5+ {[%clk 0:00:05]}  Bxd5 {[%clk 0:00:05]} 31. Qxd5+ {[%clk 0:00:06]}  Kg7 {[%clk 0:00:06]} 32. Qxb5 {[%clk 0:00:07]}  Qxa3 {[%clk 0:00:05]} 33. Qd7+ {[%clk 0:00:07]}  Kh6 {[%clk 0:00:05]} 34. Kh2 {[%clk 0:00:07]}  Qc5 {[%clk 0:00:03]} 35. e6 {[%clk 0:00:07]}  Qe5 {[%clk 0:00:00]} 36. e7 {[%clk 0:00:07]} 1-0


[Site "https://www.chess.com"]

[Event "Titled Tuesday Blitz August 1 Late 2023"]
[White "Rama, Tejas"]
[Black "Vafin, Ayrat"]
[WhiteFideId "30907381"]
[BlackFideId "4146530"]
[WhiteElo "2436"]
[BlackElo "2277"]
[Result "1/2-1/2"]
[Round "4"]
[TimeControl "180+1"]
[Date "2023.08.01"]
[WhiteClock "0:00:05"]
[BlackClock "0:00:12"]
[Board "136"]

1. d4 {[%clk 0:02:56]}  d5 {[%clk 0:03:00]} 2. c4 {[%clk 0:02:56]}  e6 {[%clk 0:03:00]} 3. Nf3 {[%clk 0:02:54]}  Nf6 {[%clk 0:03:00]} 4. Nc3 {[%clk 0:02:55]}  Be7 {[%clk 0:03:00]} 5. Bf4 {[%clk 0:02:49]}  O-O {[%clk 0:03:00]} 6. e3 {[%clk 0:02:49]}  b6 {[%clk 0:03:01]} 7. Bd3 {[%clk 0:02:48]}  Bb7 {[%clk 0:02:59]} 8. cxd5 {[%clk 0:02:47]}  Nxd5 {[%clk 0:02:59]} 9. Nxd5 {[%clk 0:02:47]}  Qxd5 {[%clk 0:02:59]} 10. Qc2 {[%clk 0:02:46]}  Qa5+ {[%clk 0:02:30]} 11. Ke2 {[%clk 0:02:26]}  Ba6 {[%clk 0:02:27]} 12. Rhc1 {[%clk 0:02:15]}  c5 {[%clk 0:02:23]} 13. a3 {[%clk 0:02:06]}  cxd4 {[%clk 0:02:16]} 14. Nxd4 {[%clk 0:01:57]}  Qh5+ {[%clk 0:01:44]} 15. Ke1 {[%clk 0:01:42]}  e5 {[%clk 0:01:34]} 16. Bxa6 {[%clk 0:01:09]}  Nxa6 {[%clk 0:01:21]} 17. Qf5 {[%clk 0:01:02]}  Qxf5 {[%clk 0:00:59]} 18. Nxf5 {[%clk 0:01:03]}  Bf6 {[%clk 0:01:00]} 19. Bg3 {[%clk 0:01:00]}  Nc5 {[%clk 0:00:59]} 20. Rc2 {[%clk 0:00:49]}  e4 {[%clk 0:00:56]} 21. Rb1 {[%clk 0:00:44]}  Rfd8 {[%clk 0:00:49]} 22. Nd6 {[%clk 0:00:33]}  h5 {[%clk 0:00:31]} 23. h3 {[%clk 0:00:21]}  Be7 {[%clk 0:00:29]} 24. Nf5 {[%clk 0:00:17]}  Bf6 {[%clk 0:00:29]} 25. Nd6 {[%clk 0:00:12]}  Be7 {[%clk 0:00:24]} 26. Nc4 {[%clk 0:00:10]}  Rac8 {[%clk 0:00:17]} 27. Ke2 {[%clk 0:00:08]}  Nd3 {[%clk 0:00:17]} 28. a4 {[%clk 0:00:04]}  f5 {[%clk 0:00:17]} 29. b3 {[%clk 0:00:04]}  h4 {[%clk 0:00:17]} 30. Bh2 {[%clk 0:00:04]}  a6 {[%clk 0:00:17]} 31. Rd2 {[%clk 0:00:03]}  b5 {[%clk 0:00:17]} 32. axb5 {[%clk 0:00:04]}  axb5 {[%clk 0:00:18]} 33. Ne5 {[%clk 0:00:04]}  Bf6 {[%clk 0:00:16]} 34. Nxd3 {[%clk 0:00:04]}  exd3+ {[%clk 0:00:16]} 35. Kd1 {[%clk 0:00:05]}  Bc3 {[%clk 0:00:15]} 36. Ra2 {[%clk 0:00:06]}  d2 {[%clk 0:00:14]} 37. Bf4 {[%clk 0:00:06]}  Rd7 {[%clk 0:00:14]} 38. e4 {[%clk 0:00:06]}  fxe4 {[%clk 0:00:13]} 39. Ke2 {[%clk 0:00:06]}  Rcd8 {[%clk 0:00:14]} 40. Rd1 {[%clk 0:00:06]}  Bb4 {[%clk 0:00:14]} 41. Bxd2 {[%clk 0:00:07]}  Kf7 {[%clk 0:00:14]} 42. Rc2 {[%clk 0:00:06]}  Ke6 {[%clk 0:00:14]} 43. Rc6+ {[%clk 0:00:06]}  Kf7 {[%clk 0:00:14]} 44. Rc2 {[%clk 0:00:06]}  Ke6 {[%clk 0:00:14]} 45. Ke3 {[%clk 0:00:06]}  Kf7 {[%clk 0:00:12]} 46. Ke2 {[%clk 0:00:05]} 1/2-1/2


[Site "https://www.chess.com"]

[Event "Titled Tuesday Blitz August 1 Late 2023"]
[White "Andreassen, Lars"]
[Black "Novikov, Evgenij"]
[WhiteFideId "1504878"]
[BlackFideId "4125380"]
[WhiteElo "2272"]
[BlackElo "2431"]
[Result "0-1"]
[Round "4"]
[TimeControl "180+1"]
[Date "2023.08.01"]
[WhiteClock "0:00:00"]
[BlackClock "0:01:13"]
[Board "138"]

1. d4 {[%clk 0:02:15]}  Nf6 {[%clk 0:02:58]} 2. Nf3 {[%clk 0:02:12]}  d5 {[%clk 0:02:57]} 3. Bg5 {[%clk 0:02:13]}  c5 {[%clk 0:02:57]} 4. e3 {[%clk 0:02:13]}  cxd4 {[%clk 0:02:54]} 5. exd4 {[%clk 0:02:11]}  Nc6 {[%clk 0:02:54]} 6. c3 {[%clk 0:02:11]}  a6 {[%clk 0:02:49]} 7. Nbd2 {[%clk 0:02:08]}  Bf5 {[%clk 0:02:41]} 8. Qb3 {[%clk 0:02:07]}  Qd7 {[%clk 0:02:27]} 9. Be2 {[%clk 0:01:47]}  e6 {[%clk 0:02:26]} 10. O-O {[%clk 0:01:46]}  Bd6 {[%clk 0:02:23]} 11. Rfe1 {[%clk 0:01:46]}  O-O {[%clk 0:02:20]} 12. a4 {[%clk 0:01:43]}  Ne4 {[%clk 0:02:18]} 13. Nxe4 {[%clk 0:01:41]}  Bxe4 {[%clk 0:02:19]} 14. Bh4 {[%clk 0:01:33]}  Bg6 {[%clk 0:02:06]} 15. Bg3 {[%clk 0:01:31]}  Rfe8 {[%clk 0:01:59]} 16. Nh4 {[%clk 0:01:23]}  Bxg3 {[%clk 0:01:52]} 17. hxg3 {[%clk 0:01:22]}  Ne7 {[%clk 0:01:45]} 18. f4 {[%clk 0:01:20]}  Be4 {[%clk 0:01:43]} 19. Nf3 {[%clk 0:01:14]}  Nf5 {[%clk 0:01:38]} 20. Kf2 {[%clk 0:01:07]}  Qc7 {[%clk 0:01:33]} 21. a5 {[%clk 0:00:49]}  h6 {[%clk 0:01:27]} 22. Qb6 {[%clk 0:00:19]}  Rac8 {[%clk 0:01:22]} 23. Qxc7 {[%clk 0:00:19]}  Rxc7 {[%clk 0:01:23]} 24. g4 {[%clk 0:00:19]}  Nd6 {[%clk 0:01:23]} 25. Ne5 {[%clk 0:00:19]}  f6 {[%clk 0:01:23]} 26. Nf3 {[%clk 0:00:19]}  Kf7 {[%clk 0:01:22]} 27. g3 {[%clk 0:00:18]}  Bxf3 {[%clk 0:01:18]} 28. Bxf3 {[%clk 0:00:18]}  Nc4 {[%clk 0:01:19]} 29. Re2 {[%clk 0:00:17]}  Rd8 {[%clk 0:01:17]} 30. Rc2 {[%clk 0:00:16]}  Nd6 {[%clk 0:01:15]} 31. Ke3 {[%clk 0:00:13]}  Nb5 {[%clk 0:01:14]} 32. Be2 {[%clk 0:00:12]}  Nd6 {[%clk 0:01:14]} 33. Bd3 {[%clk 0:00:12]}  Rdc8 {[%clk 0:01:14]} 34. Ra4 {[%clk 0:00:09]}  Nc4+ {[%clk 0:01:13]} 35. Bxc4 {[%clk 0:00:09]}  Rxc4 {[%clk 0:01:14]} 36. Rxc4 {[%clk 0:00:10]}  Rxc4 {[%clk 0:01:15]} 37. b4 {[%clk 0:00:09]}  Ke7 {[%clk 0:01:14]} 38. Kd3 {[%clk 0:00:09]}  Kd6 {[%clk 0:01:14]} 39. Re2 {[%clk 0:00:09]}  Rc7 {[%clk 0:01:14]} 40. Re1 {[%clk 0:00:01]}  Re7 {[%clk 0:01:14]} 41. Re2 {[%clk 0:00:02]}  Kc6 {[%clk 0:01:14]} 42. Re1 {[%clk 0:00:02]}  Kb5 {[%clk 0:01:13]} 43. Re2 {[%clk 0:00:01]}  b6 {[%clk 0:01:12]} 44. axb6 {[%clk 0:00:01]}  Kxb6 {[%clk 0:01:13]} 45. Ra2 {[%clk 0:00:02]}  e5 {[%clk 0:01:12]} 46. fxe5 {[%clk 0:00:02]}  fxe5 {[%clk 0:01:13]} 47. dxe5 {[%clk 0:00:02]}  Rxe5 {[%clk 0:01:13]} 48. Rf2 {[%clk 0:00:01]}  Rg5 {[%clk 0:01:13]} 49. Rf4 {[%clk 0:00:02]}  a5 {[%clk 0:01:12]} 50. bxa5+ {[%clk 0:00:01]}  Kxa5 {[%clk 0:01:13]} 51. Kd4 {[%clk 0:00:00]}  Kb5 {[%clk 0:01:13]} 0-1


[Site "https://www.chess.com"]

[Event "Titled Tuesday Blitz August 1 Late 2023"]
[White "Ingunza Curro, Andres"]
[Black "BrandonJiang123456"]
[WhiteFideId "24526371"]
[WhiteElo "2426"]
[BlackElo "2255"]
[Result "1-0"]
[Round "4"]
[TimeControl "180+1"]
[Date "2023.08.01"]
[WhiteClock "0:00:29"]
[BlackClock "0:01:00"]
[Board "140"]

1. e4 {[%clk 0:02:59]}  c5 {[%clk 0:02:51]} 2. b3 {[%clk 0:02:58]}  e5 {[%clk 0:02:50]} 3. Bb2 {[%clk 0:02:58]}  Nc6 {[%clk 0:02:50]} 4. Bc4 {[%clk 0:02:57]}  d6 {[%clk 0:02:50]} 5. Ne2 {[%clk 0:02:57]}  Nf6 {[%clk 0:02:50]} 6. Nbc3 {[%clk 0:02:55]}  Be7 {[%clk 0:02:50]} 7. O-O {[%clk 0:02:55]}  O-O {[%clk 0:02:50]} 8. d3 {[%clk 0:02:55]}  a6 {[%clk 0:02:51]} 9. a4 {[%clk 0:02:55]}  Be6 {[%clk 0:02:49]} 10. Ng3 {[%clk 0:02:54]}  g6 {[%clk 0:02:43]} 11. Bc1 {[%clk 0:02:48]}  Kg7 {[%clk 0:02:35]} 12. f4 {[%clk 0:02:44]}  exf4 {[%clk 0:02:27]} 13. Bxf4 {[%clk 0:02:45]}  Bxc4 {[%clk 0:02:23]} 14. bxc4 {[%clk 0:02:30]}  Qd7 {[%clk 0:02:11]} 15. Qd2 {[%clk 0:02:18]}  Nd4 {[%clk 0:01:59]} 16. Bh6+ {[%clk 0:01:58]}  Kg8 {[%clk 0:01:57]} 17. Bxf8 {[%clk 0:01:50]}  Rxf8 {[%clk 0:01:58]} 18. Rab1 {[%clk 0:01:46]}  Ng4 {[%clk 0:01:55]} 19. Nd5 {[%clk 0:01:40]}  Bd8 {[%clk 0:01:47]} 20. h3 {[%clk 0:01:24]}  Ne5 {[%clk 0:01:44]} 21. c3 {[%clk 0:01:21]}  Ne6 {[%clk 0:01:39]} 22. Nf5 {[%clk 0:01:01]}  gxf5 {[%clk 0:01:33]} 23. exf5 {[%clk 0:01:02]}  Bg5 {[%clk 0:01:33]} 24. fxe6 {[%clk 0:00:55]}  Bxd2 {[%clk 0:01:32]} 25. Nf6+ {[%clk 0:00:50]}  Kg7 {[%clk 0:01:30]} 26. Nxd7 {[%clk 0:00:50]}  Nxd7 {[%clk 0:01:30]} 27. exd7 {[%clk 0:00:51]}  Rd8 {[%clk 0:01:28]} 28. Rxb7 {[%clk 0:00:48]}  Bxc3 {[%clk 0:01:28]} 29. Rfb1 {[%clk 0:00:40]}  Kf6 {[%clk 0:01:27]} 30. Kf2 {[%clk 0:00:38]}  Ke7 {[%clk 0:01:27]} 31. Ra7 {[%clk 0:00:33]}  a5 {[%clk 0:01:27]} 32. Rbb7 {[%clk 0:00:32]}  Bg7 {[%clk 0:01:20]} 33. Kf3 {[%clk 0:00:31]}  Bc3 {[%clk 0:01:20]} 34. Ke4 {[%clk 0:00:31]}  Bb4 {[%clk 0:01:18]} 35. Kd5 {[%clk 0:00:31]}  Bc3 {[%clk 0:01:18]} 36. Rc7 {[%clk 0:00:30]}  Bd2 {[%clk 0:01:13]} 37. Kc6 {[%clk 0:00:30]}  Be1 {[%clk 0:01:10]} 38. Rc8 {[%clk 0:00:30]}  Bh4 {[%clk 0:01:00]} 39. Rxd8 {[%clk 0:00:29]} 1-0


[Site "https://www.chess.com"]